Cogmind - Beta 9.2 @@@ ROGUE MODE // 2019.12.03 @ 16:53:47 Player: Cassie Rose Result: Destroyed by Y-45 Defender with Heavy Assault Rifle Performance ------------- Evolutions (1) 500 Regions Visited (2) 400 Robots Destroyed (44) 220 Value Destroyed (1145) 1145 Prototype IDs (2) 40 Alien Tech Used (0) 0 Bonus (0) 0 TOTAL SCORE: 2305 Bonus ------- None Cogmind --------- Core Integrity 0/400 Matter 90/300 Energy 263/265 System Corruption 2% Temperature Cool (10) Movement Walking (150) Ox1 Location -9/Materials Parts ------- > --- POWER (1) -------- Improved Ion Engine > --- PROPULSION (3) --- Aluminum Leg > --- UTILITY (3) ------ Medium Storage Unit Weight Redist. System Light Armor Plating > --- WEAPON (2) ------- Beam Rifle Light Assault Rifle > --- INVENTORY (8) ---- Improved Ion Engine Light Treads Light Treads Improved Heat Sink Signal Interpreter Signal Interpreter Datajack Peak State ------------ > --- POWER ------------ Improved Ion Engine > --- PROPULSION ------- Improved Aluminum Leg Improved Aluminum Leg Improved Aluminum Leg > --- UTILITY ---------- Small Storage Unit Light Armor Plating Medium Armor Plating > --- WEAPON ----------- Assault Rifle Autogun > --- INVENTORY -------- Light Ion Engine Improved Heat Sink Weight Redist. System Small Laser Rocket Launcher Datajack [Rating: 16] Favorites ----------- Power Light Ion Engine Engine Light Ion Engine Propulsion Aluminum Leg Leg Aluminum Leg Utility Small Storage Unit Device Improved Terrain Scanner Storage Small Storage Unit Protection Light Armor Plating Weapon EM Pulse Gun Energy Gun EM Pulse Gun Ballistic Gun Light Assault Rifle Launcher Rocket Launcher Build | -11 -10 -9 ------- Run | Scr Mat Mat Slots Evolved 2 | . . 2 Power . | . . . Propulsion 1 | . . 1 Utility 1 | . . 1 Weapon . | . . . Parts Attached 49 | 7 5 37 Power 6 | 1 1 4 Engine 6 | 1 1 4 Core . | . . . Reactor . | . . . Propulsion 18 | 2 3 13 Treads . | . . . Leg 18 | 2 3 13 Wheel . | . . . Hover . | . . . Flight . | . . . Utility 14 | 2 . 12 Device 4 | 1 . 3 Storage 4 | 1 . 3 Processor . | . . . Hackware . | . . . Protection 6 | . . 6 Artifact . | . . . Weapon 11 | 2 1 8 Energy Gun 4 | 2 . 2 Energy Cannon . | . . . Ballistic Gun 6 | . 1 5 Ballistic Cannon . | . . . Launcher 1 | . . 1 Special Weapon . | . . . Impact Weapon . | . . . Slashing Weapon . | . . . Piercing Weapon . | . . . Special Melee Weapon . | . . . Unidentified Prototypes . | . . . Parts Lost 20 | . 2 18 Power 1 | . 1 . Propulsion 8 | . . 8 Utility 4 | . . 4 Weapon 7 | . 1 6 Highest Loss Streak 4 | . 2 4 Average Slot Usage (%) 91 | . 99 88 Engine 11 | . 14 11 Leg 27 | . 28 27 Device 8 | . 14 5 Storage 11 | . 14 11 Protection 8 | . . 11 Energy Gun 8 | . 23 3 Ballistic Gun 13 | . 4 17 Naked Turns . | . . . Heaviest Build 26 | 12 12 26 Greatest Support 39 | 20 20 39 Greatest Overweight (x) 3 | 3 . 1 Average Overweight (x) . | . . . Largest Inventory Capacity 10 | 6 6 10 Average Capacity 6 | 5 6 6 Most Carried 8 | 6 6 8 Average Carried 4 | 3 5 4 Final Capacity 8 | 6 6 8 Final Carried 7 | 6 4 7 Class Distribution -------------------- 51% | Scavenger-Mutant 48% | Mutant Dominant Class ---------------- Mutant | -10/Materials Scavenger-Mutant | -9/Materials Resources | -11 -10 -9 ----------- Run | Scr Mat Mat Matter Collected 1034 | 270 51 713 Remotely . | . . . Salvage Created 1363 | 90 237 1036 Parts 103 | 5 17 81 Haulers Intercepted 2 | . . 2 Recyclers Shooed 2 | . 1 1 Parts Field Recycled . | . . . Retrieved Matter . | . . . Parts Self-Destructed . | . . . Prevented . | . . . Kills | -11 -10 -9 ------- Run | Scr Mat Mat Combat Hostiles Destroyed 33 | . 4 29 Guns 29 | . 4 25 AOE 4 | . . 4 Classes Destroyed 12 | 2 3 7 Worker 1 | . . 1 Builder 1 | . . 1 Tunneler 1 | 1 . . Hauler 2 | . . 2 Recycler 2 | 1 . 1 Operator 2 | . 1 1 Watcher 2 | . 2 . Swarmer 9 | . . 9 Grunt 17 | . 4 13 Brawler 1 | . . 1 Duelist 1 | . . 1 Sentry 5 | . . 5 Best Kill Streak 11 | 2 2 11 Combat Bots Only 5 | . 2 5 Max Kills in Single Turn 2 | 1 1 2 Gunslinging . | . . . Exploded 2 | . . 2 Melee . | . . . Uniques/NPCs Destroyed . | . . . Combat | -11 -10 -9 -------- Run | Scr Mat Mat Damage Taken 2831 | . 285 2546 Core 496 | . 83 413 Absorbed by Shields . | . . . Core Remaining (%) 83 | 100 66 . Volleys Fired 166 | 2 33 131 Largest 2 | 2 2 2 Hottest 80 | 80 80 76 Shots Fired 293 | 4 61 228 Gun 280 | 4 61 215 Cannon . | . . . Launcher 13 | . . 13 Special . | . . . Kinetic 199 | . 9 190 Thermal 21 | . . 21 Explosive 13 | . . 13 Electromagnetic 60 | 4 52 4 Robot Hit Streak 26 | 3 6 26 Robot Miss Streak 8 | 1 4 8 Penetration Max . | . . . Secondary Targets 2 | . . 2 Max Gunslinging Chain 1 | . . 1 Shots Hit Robots 186 | 3 36 147 Core Hits 80 | 3 12 65 Critical Hits 1 | . . 1 Critical Kills . | . . . Critical Parts Destroyed 1 | . . 1 Melee Attacks . | . . . Impact . | . . . Slashing . | . . . Piercing . | . . . Sneak Attacks . | . . . Combat Hostiles . | . . . Follow-up Attacks . | . . . Damage Inflicted 3040 | 58 497 2485 Guns 2123 | 58 429 1636 Cannons . | . . . Explosions 917 | . 68 849 Melee . | . . . Ramming . | . . . Kinetic 1484 | . 35 1449 Thermal 471 | . 68 403 Explosive 601 | . . 601 Electromagnetic 484 | 58 394 32 Impact . | . . . Slashing . | . . . Piercing . | . . . Highest Corruption 2 | . . 2 Average Corruption 2 | . . 2 Corruption Purged . | . . . Effects 17 | . . 17 Message Errors 11 | . . 11 Energy Discharges 1 | . . 1 Targeting Errors 4 | . . 4 Weapon Failures 1 | . . 1 Overload Shots . | . . . Overflow Damage 9 | . 9 . Projectiles . | . . . Explosions 9 | . 9 . Melee . | . . . Knockbacks . | . . . Impact . | . . . Kinetic . | . . . Secondary . | . . . Self-Inflicted Damage 283 | . 29 254 Shots 6 | . 1 5 Rammed . | . . . Targets Rammed . | . . . Kicked . | . . . Crushed . | . . . Highest Temperature 273 | 18 273 180 Average Temperature 41 | 12 84 26 Received Heat Transfer 936 | . 141 795 Siege Activations . | . . . Robots Corrupted . | . . . Combat Hostiles . | . . . Parts Fried 3 | 1 2 . Impact Corruptions . | . . . Robots Melted . | . . . Combat Hostiles . | . . . Parts Melted . | . . . Heat Transferred 672 | . 100 572 Parts Sabotaged . | . . . Parts Stolen . | . . . Parts Stripped . | . . . Power Chain Reactions 3 | . 2 1 Missiles Intercepted . | . . . Alert | -11 -10 -9 ------- Run | Scr Mat Mat Peak Influence 285 | 10 104 285 Average Influence 77 | 4 43 94 Maximum Alert Level 1 | . . 1 Low Security (%) 86 | 100 100 80 Level 1 13 | . . 19 Level 2 . | . . . Level 3 . | . . . Level 4 . | . . . Level 5 . | . . . High Security . | . . . Max Security . | . . . Squads Dispatched 5 | . 2 3 Investigation 3 | . 1 2 Extermination . | . . . Reinforcement 2 | . 1 1 Assault . | . . . Garrison . | . . . Intercept . | . . . Construction Impeded . | . . . Haulers Reinforced . | . . . Stealth | -11 -10 -9 --------- Run | Scr Mat Mat Distress Signals 5 | . 1 4 Communications Jammed . | . . . Distress Signals . | . . . Times Spotted 63 | . 12 51 Peak Tracking Total 5 | . 4 5 Tactical Retreats 4 | . 2 2 Traps | -11 -10 -9 ------- Run | Scr Mat Mat Traps Triggered 2 | . 1 1 Indirectly . | . . . Trap Hack Attempts . | . . . Triggered . | . . . Disarmed . | . . . Reprogrammed . | . . . Reused . | . . . Traps Extracted . | . . . Installed . | . . . Triggered . | . . . Machines | -11 -10 -9 ---------- Run | Scr Mat Mat Machines Disabled 5 | . . 5 Max in Single Turn 2 | . . 2 Machines Sabotaged . | . . . Garrisons Compromised . | . . . Overloaded Fab Kills . | . . . Fab Network Shutdowns . | . . . Hacking | -11 -10 -9 --------- Run | Scr Mat Mat Machines Accessed 9 | . 4 5 Terminals 9 | . 4 5 Fabricators . | . . . Repair Stations . | . . . Recycling Units . | . . . Scanalyzers . | . . . Garrison Access . | . . . Total Hacks 34 | . 14 20 Successful 16 | . 7 9 Failed 18 | . 7 11 Catastrophic 2 | . 1 1 Database Lockouts . | . . . Manual 30 | . 11 19 Terminals 34 | . 14 20 Fabricators . | . . . Repair Stations . | . . . Recycling Units . | . . . Scanalyzers . | . . . Garrison Access . | . . . Terminal Hacks 4 | . 3 1 Prototype ID Bank 1 | . 1 . Alert Level 1 | . 1 . Unreport Threat 1 | . . 1 Zone Layout 1 | . 1 . Fabricator Hacks . | . . . Repair Station Hacks . | . . . Recycling Unit Hacks . | . . . Scanalyzer . | . . . Garrison Access Hacks . | . . . Unauthorized Hacks 36 | . 12 24 Terminals 11 | . 3 8 Assimilate 4 | . 1 3 Botnet 7 | . 2 5 Fabricators . | . . . Repair Stations . | . . . Recycling Units . | . . . Scanalyzers . | . . . Garrison Access . | . . . Data Cores Recovered . | . . . Used . | . . . Hacking Detections 8 | . 3 5 Full Trace Events 2 | . . 2 Feedback Events . | . . . Feedback Blocked . | . . . Robot Schematics Acquired . | . . . Robots Built . | . . . Matter . | . . . Time . | . . . Total Robot Build Rating . | . . . Part Schematics Acquired . | . . . Parts Built . | . . . Matter . | . . . Time . | . . . Total Part Build Rating . | . . . Parts Repaired . | . . . Time . | . . . Parts Recycled . | . . . Recycled Matter . | . . . Retrieved Matter . | . . . Retrieved Components . | . . . Parts Scanalyzed . | . . . Part Schematics Acquired . | . . . Parts Damaged . | . . . Bothacking | -11 -10 -9 ------------ Run | Scr Mat Mat Used RIF Installer . | . . . Robots Hacked . | . . . Non-combat . | . . . Combat . | . . . Robot Hacks Applied . | . . . Relay Couplers Released . | . . . Robots Rewired . | . . . Allies Hacked . | . . . Hacks Repelled . | . . . Allies | -11 -10 -9 -------- Run | Scr Mat Mat Total Allies . | . . . Largest Group . | . . . Highest-Rated Group . | . . . Highest-Rated Ally . | . . . Total Orders . | . . . Ally Attacks . | . . . Total Damage . | . . . Kills . | . . . Allies Corrupted . | . . . Allies Melted . | . . . Intel | -11 -10 -9 ------- Run | Scr Mat Mat Robot Analysis Total . | . . . Derelict Logs Recovered . | . . . Drone Launches . | . . . Drone Recoveries . | . . . Exploration | -11 -10 -9 ------------- Run | Scr Mat Mat Turns Passed 2454 | 117 614 1723 Spaces Moved 1328 | 66 301 961 Core 29 | 26 . 3 Treads . | . . . Legs 1299 | 40 301 958 Wheels . | . . . Hover . | . . . Flight . | . . . Fastest Speed 50 | 50 120 100 Average Speed 121 | 125 120 122 Slowest Speed 200 | 200 120 150 Overloaded Moves . | . . . Propulsion Burnouts . | . . . Robots Hopped . | . . . Cave-ins Triggered . | . . . Exploration Rate (%) 38 | 4 54 58 Regions Visited 2 Branch Regions . Pre-discovered Areas . | . . . Known Exits Taken . | . . . Unknown Exits Taken 2 | 1 1 . Scrap Searched . | . . . Spaces Dug . | . . . Terrain Destroyed 133 | . 4 129 Melee . | . . . Projectile . | . . . AOE 133 | . 4 129 Actions | -11 -10 -9 --------- Run | Scr Mat Mat Total 1905 | 95 495 1315 Wait 291 | 9 147 135 Move 1326 | 65 300 961 Hop . | . . . Pick Up 46 | 12 5 29 Fast Attach 4 | 1 . 3 Attach 27 | 6 2 19 Detach 2 | . . 2 Swap 18 | . 3 15 Drop 25 | . 5 20 Fire 166 | 2 33 131 Melee . | . . . Ram . | . . . Kick . | . . . Crush . | . . . Escape Stasis . | . . . Rewire . | . . . Trap . | . . . Miscellaneous . | . . . Route ------- -11/Scrapyard -10/Materials (discovered 3 exits: *Mat x2 / [*Min]) -9/Materials (discovered 2 exits: [*Mat] / [*Min]) History --------- Turn | Location | Event 2 | -11/Scrapyard | Met Revision 17 8 | -11/Scrapyard | Discovered new exit (range 16) 118 | -11/Scrapyard | Entered Materials 282 | -10/Materials | Discovered new exit (range 15) 308 | -10/Materials | Build established: Mutant 368 | -10/Materials | Discovered new exit (range 15) 715 | -10/Materials | Discovered new exit (range 14) 732 | -10/Materials | Entered another Materials area 732 | -9/Materials | Evolved 2 slots: Propulsion x1, Utility x1 1020 | -9/Materials | Build established: Scavenger-Mutant 1102 | -9/Materials | Lost 3 parts (1n1u1w) 1155 | -9/Materials | Discovered new exit (range 4) 1215 | -9/Materials | Discovered new exit (range 16) 1819 | -9/Materials | Build established: Mutant 2029 | -9/Materials | Lost 3 parts (1n1u1w) 2193 | -9/Materials | Core integrity fell below 50% 2235 | -9/Materials | Lost 4 parts (2n1u1w) 2252 | -9/Materials | Core integrity fell below 20% 2294 | -9/Materials | Lost 3 parts (2n1w) 2376 | -9/Materials | Lost 3 parts (2n1w) 2455 | -9/Materials | Destroyed by Y-45 Defender with Heavy Assault Rifle Last Messages --------------- 02412_ K-01 Serf collects debris. 02413_ U-05 Engineer lays Concrete. 02416_ K-01 Serf collects debris. 02417_ U-05 Engineer lays Concrete. 02434_ Connecting with Terminal... >>Trojan(Botnet) Trojan loaded successfully. Testing... Terminal linked with 4 systems. Awaiting botnet instructions. >>Trojan(Assimilate) Trojan loaded successfully. Testing... System interface override in place. 02440_ G MJHVEM8KQ&1HU0U4X5LY0CGKS O4XSV QPCH 02449_ U-05 Engineer lays Concrete. 02450_ The unstable cave ceiling collapses. 02450_ U-05 Engineer builds a Wall. 02452_ The unstable cave ceiling collapses. 02453_ K-01 Serf collects debris. Map ----- +----------------------------------------------------+ | | | | | | | | | | | | | ??##############???????????????? | | ?? #???????????????? | | ?# """ """ T #???????????????? | | ?# """ """ #???????????????? | | ?# """ """ #???????????????? | | ?# #???????????????? | | ?# #???????????????? | | ?###### #######???????????????? | | ## #???????#######??????? | | % #???????# "T" #??????? | | % T #???????# #??????? | | ### #????#### """#?##???? | | ### #????# # """##Y###?? | | "" "?## ##????# # """# # | | "" ???#! #??#### + """# """ # | | ""????#!!### # # # """ # | | ???###%!## ## # ####+## """ # | | ##+###!! ##### ### ##= # | | u # """ # | | ! ku /@ """ # | | ###### ##### # # # """ # | | ####### # ## ### # # # | | """ !# %# # """ # | | """===+ + # # """ # | | """ = # # # # """ # | | **# # + + # | | # # ##+######?? | | # # #?????????? | | # #?????????? | | # ## ####+##+####?????????? | | # #### ##????????????????????? | | #?? #????????????????????? | | ##?? ???????????????????? | | ##??? ??????????????????? | | #???# ####?????????????????? | | #???######????????????????????? | | #?????????????????????????????? | | #?????????????????????????????? | | #?????????????????????????????? | | #?????????????????????????????? | | ##?????????????????????????????? | | ???????????????????????????????? | | ???????????????????????????????? | | ???????????????????????????????? | +----------------------------------------------------+ Best States ------------- Heat Dissipation 42 Energy Generation 12 Energy Capacity 265 Matter Stores 300 Matter Capacity 300 Sight Range 16 Terrain Scan Range 16 Terrain Scan Density 10 Additional Mass Support 6 Armor Coverage 375 Evasion (%) 50 Item Schematics ----------------- None Robot Schematics ------------------ None Fabricated ------------ Nothing Alien Tech Used ----------------- None Achievements -------------- None Challenges ------------ None Game ------ Seed LegImpactShielding Manual? 0 Play Time 00:28:48 Cumulative 49.4 hours Start 2019.12.03 @ 16:09:20 End 2019.12.03 @ 16:53:47 Sessions 1 Manual Loads 0 Difficulty Rogue Special Mode None Game No. 75 Rogue 75 Adventurer 0 Explorer 0 Win Type - Total 0 Types 0/0/0/0/0/0/0 Lore% 22 Gallery% 21 Achievement% 23 Wizard Run 0 Options --------- ASCII 0 Keyboard 0 Movement Arrows Keybinds 0 Fullscreen 1 Font 18/SmallcapsGlow Map View 76x50 Tactical HUD 1 Map Filters NONE Filters LOW_CONTRAST(13,24,33)|BRIGHTNESS(120)|SATURATION(80) Steam 1 RUN: 8a87f476-3c21-4a10-b61f-10198fde89f4